bitfinex-derivatives/quotes_BTCF0:USTF0_20241213
["timestamp","ask_amount","ask_price","bid_price","bid_amount"]
[1734112368037,0.31432783,101640.0,101630.0,1.13897218]
[1734112368236,0.16702853,101640.0,101630.0,1.13897218]
[1734112368434,0.16702853,101640.0,101630.0,0.96461213]
[1734112368635,0.25994358,101640.0,101630.0,0.91541913]
[1734112368840,0.31432783,101640.0,101630.0,0.409996]
[1734112369537,0.16702853,101640.0,101630.0,0.409996]
[1734112369843,0.16702853,101640.0,101620.0,1.78655363]
[1734112369844,0.049196,101630.0,101620.0,1.78655363]
[1734112370035,0.16703353,101630.0,101620.0,1.84043165]
[1734112370332,0.049196,101630.0,101620.0,1.6660716]
[1734112370538,0.049196,101630.0,101620.0,0.55898665]
[1734112370731,0.049196,101630.0,101620.0,0.4168736]
[1734112370934,0.21273353,101630.0,101620.0,1.56227558]
[1734112371131,0.21273353,101630.0,101620.0,1.56627558]
[1734112371635,0.21273353,101630.0,101620.0,0.41547658]
[1734112371943,0.11783753,101630.0,101620.0,1.70691605]
[1734112372237,0.16703053,101640.0,101630.0,0.049196]
[1734112372440,0.16703053,101640.0,101630.0,0.50291105]
[1734112372641,0.16703053,101640.0,101630.0,0.409996]
[1734112373032,0.16703053,101640.0,101630.0,0.049196]
[1734112373229,0.049196,101630.0,101620.0,1.752101]
[1734112373429,0.049196,101630.0,101620.0,1.707301]
[1734112373740,0.049196,101630.0,101620.0,1.610001]
[1734112374044,0.16703353,101630.0,101620.0,1.610001]
[1734112374247,0.049196,101630.0,101620.0,1.610001]
[1734112374735,0.16703353,101630.0,101620.0,1.610001]
[1734112374936,0.21523353,101630.0,101620.0,1.610001]
[1734112375141,0.21523353,101630.0,101620.0,0.410001]
[1734112375442,0.21523353,101630.0,101620.0,0.412001]
[1734112375740,0.21523353,101630.0,101620.0,0.416001]
[1734112376132,0.097396,101630.0,101620.0,0.416001]
[1734112376532,0.097396,101630.0,101620.0,0.3668]
[1734112377231,0.21523353,101630.0,101620.0,0.3668]
[1734112377431,0.21523353,101630.0,101620.0,0.416001]
[1734112378742,0.16703353,101630.0,101620.0,0.416001]
[1734112380135,0.16703353,101630.0,101620.0,0.410001]
[1734112381135,0.049196,101630.0,101620.0,0.410001]
[1734112382944,0.049196,101630.0,101620.0,1.70291605]
[1734112383140,0.049196,101630.0,101620.0,1.610001]
[1734112383541,0.049196,101630.0,101620.0,0.410001]
[1734112383948,0.26513683,101640.0,101620.0,2.20291605]
[1734112384244,0.049193,101640.0,101630.0,0.50291105]
[1734112384439,0.049193,101640.0,101630.0,0.554296]
[1734112384650,0.049193,101640.0,101630.0,1.054296]
[1734112385051,0.049193,101640.0,101630.0,1.14721105]
[1734112385635,0.049193,101640.0,101630.0,1.054296]
[1734112386745,0.049193,101640.0,101630.0,0.554296]
[1734112386945,0.049193,101640.0,101630.0,0.193496]
[1734112387146,0.16703053,101640.0,101630.0,0.193496]
[1734112387648,0.16703053,101640.0,101630.0,0.554296]
[1734112387850,0.049193,101640.0,101630.0,0.193496]
[1734112388046,0.16703053,101640.0,101630.0,0.144996]
[1734112388249,0.16703053,101640.0,101630.0,0.049196]
[1734112389247,0.31432983,101640.0,101630.0,0.049196]
[1734112390852,0.16703053,101640.0,101630.0,0.409996]
[1734112391048,0.16703053,101640.0,101630.0,0.50291105]
[1734112391241,0.16703053,101640.0,101630.0,1.00291105]
[1734112393650,0.16703053,101640.0,101630.0,0.909996]
[1734112393947,0.16703053,101640.0,101630.0,0.409996]
[1734112395948,0.11783753,101640.0,101630.0,0.909996]
[1734112396355,0.11783753,101640.0,101630.0,0.409996]
[1734112396557,0.11783753,101640.0,101630.0,0.50291105]
[1734112396753,0.11783753,101640.0,101630.0,1.00291105]
[1734112396954,0.11783753,101640.0,101630.0,1.1772711]
[1734112397149,0.11783753,101640.0,101630.0,1.23174122]
[1734112397460,0.31432583,101650.0,101630.0,2.66180473]
[1734112397664,0.31432583,101650.0,101640.0,0.59390605]
[1734112397959,0.31432583,101650.0,101640.0,0.63900605]
[1734112398459,0.31432583,101650.0,101640.0,1.13900605]
[1734112398764,0.31432583,101650.0,101640.0,1.19345494]
[1734112400163,0.16702653,101650.0,101640.0,1.19345494]
[1734112401959,0.11783753,101650.0,101640.0,1.19345494]
[1734112402656,0.11783753,101650.0,101640.0,1.28636999]
[1734112402854,0.11783753,101650.0,101640.0,1.36781499]
[1734112403065,0.11783753,101650.0,101640.0,1.46073004]
[1734112403256,0.26513683,101660.0,101650.0,0.049187]
[1734112403458,0.11783753,101660.0,101650.0,0.55734615]
[1734112403761,0.11783753,101660.0,101650.0,1.05734615]
[1734112404162,0.31431683,101670.0,101650.0,1.05734615]
[1734112404362,0.31431683,101670.0,101660.0,0.50289705]
[1734112406168,0.20392125,101710.0,101680.0,0.3608]
[1734112406376,0.40094876,101740.0,101710.0,0.049158]
[1734112406661,0.01029522,101740.0,101730.0,0.50286305]
[1734112406870,0.00017,101740.0,101730.0,0.50286305]
[1734112407279,0.00017,101740.0,101730.0,0.5957781]
[1734112407569,0.00017,101740.0,101730.0,1.00286305]
[1734112407966,0.00017,101740.0,101730.0,1.1772231]
[1734112408268,0.00017,101740.0,101730.0,0.50286305]
[1734112408475,0.049313,101740.0,101730.0,0.049148]
[1734112408764,0.410113,101740.0,101730.0,0.049148]
[1734112408970,0.049148,101730.0,101720.0,0.049151]
[1734112409261,0.049148,101730.0,101720.0,0.14206605]
[1734112409262,0.0481,101730.0,101720.0,0.14206605]
[1734112409658,0.0481,101730.0,101720.0,0.049151]
[1734112410059,0.097248,101730.0,101720.0,0.049151]
[1734112415772,0.049153,101720.0,101710.0,0.409954]
[1734112416068,0.097251,101730.0,101720.0,0.049153]
[1734112417766,0.23644549,101730.0,101720.0,0.049153]
[1734112417967,0.0481,101730.0,101720.0,0.409953]
[1734112418158,0.00017,101740.0,101730.0,0.049148]
[1734112418360,0.00017,101740.0,101730.0,0.54914249]
[1734112418576,0.00017,101740.0,101730.0,0.909948]
[1734112420569,0.00017,101740.0,101730.0,0.409948]
[1734112420765,0.049312,101740.0,101730.0,0.409948]
[1734112420961,0.094112,101740.0,101730.0,0.409948]
[1734112421168,0.04497,101740.0,101730.0,0.409948]
[1734112421368,0.04497,101740.0,101730.0,0.909948]
[1734112421577,0.04497,101740.0,101730.0,0.42020995]
[1734112421875,0.04497,101740.0,101730.0,0.92020995]
[1734112422470,0.04497,101740.0,101730.0,2.12020995]
[1734112423974,0.3608,101760.0,101730.0,2.12020995]
[1734112424172,0.5,101770.0,101760.0,0.049133]
[1734112424370,0.5,101770.0,101760.0,0.409933]
[1734112425765,0.549128,101770.0,101760.0,0.409933]
[1734112426273,0.549128,101770.0,101760.0,0.3608]
[1734112426467,0.595128,101770.0,101760.0,0.409933]
[1734112427079,0.049133,101760.0,101750.0,0.049136]
[1734112428671,0.049138,101750.0,101740.0,0.40994]
[1734112428872,0.049135,101760.0,101750.0,0.049137]
[1734112429182,0.95593,101770.0,101760.0,0.049133]
[1734112430273,1.00273,101770.0,101760.0,0.049133]
[1734112431771,0.049133,101760.0,101750.0,0.409935]
[1734112433774,0.049133,101760.0,101750.0,0.3608]
[1734112433970,0.049138,101750.0,101740.0,0.40994]
[1734112434581,0.049138,101750.0,101740.0,0.50267257]
[1734112435077,0.049135,101760.0,101750.0,0.049135]
[1734112435280,0.049135,101760.0,101750.0,0.409935]
[1734112435580,0.64193,101770.0,101760.0,0.049133]
[1734112437982,0.049133,101760.0,101750.0,1.609936]
[1734112439380,0.049133,101760.0,101750.0,0.049136]
[1734112439579,0.049138,101750.0,101740.0,0.58430005]
[1734112440675,0.049138,101750.0,101740.0,0.40994]
[1734112441881,0.094838,101750.0,101740.0,0.40994]
[1734112444182,0.094838,101750.0,101740.0,0.58430005]
[1734112444776,0.049138,101750.0,101740.0,0.40994]
[1734112445070,0.049138,101750.0,101740.0,0.50267257]
[1734112445278,0.049138,101750.0,101740.0,0.67703262]
[1734112446286,0.049138,101750.0,101740.0,0.58430005]
[1734112446472,0.409938,101750.0,101740.0,0.17436005]
[1734112446777,0.049143,101740.0,101730.0,0.42020895]
[1734112446976,0.144243,101740.0,101730.0,0.3608]
[1734112447682,0.144243,101740.0,101730.0,0.409947]
[1734112448982,0.23697557,101740.0,101730.0,0.3608]
[1734112449200,0.29101278,101740.0,101730.0,0.3608]
[1734112449482,0.50486678,101770.0,101740.0,0.049143]
[1734112449677,0.50486678,101770.0,101760.0,0.86346557]
[1734112450080,0.50486678,101770.0,101760.0,1.45619814]
[1734112450283,0.5,101770.0,101760.0,1.45619814]
[1734112450486,0.5,101770.0,101760.0,1.75619814]
[1734112450684,0.5,101770.0,101760.0,1.92984704]
[1734112450883,0.5,101770.0,101760.0,2.55250799]
[1734112450884,0.05279134,101770.0,101760.0,2.55250799]
[1734112451083,0.05279134,101770.0,101760.0,2.37527933]
[1734112451284,0.0014751,101790.0,101780.0,0.049123]
[1734112451483,0.0014751,101790.0,101780.0,0.67616819]
[1734112451694,0.0014751,101790.0,101780.0,1.03696819]
[1734112452189,0.049118,101790.0,101780.0,1.03696819]
[1734112452382,0.049118,101790.0,101780.0,0.94423562]
[1734112452584,0.049118,101790.0,101780.0,1.03696819]
[1734112452780,0.049118,101790.0,101780.0,2.23696819]
[1734112453288,0.049118,101790.0,101780.0,0.86345557]
[1734112453599,0.149116,101800.0,101790.0,0.049118]
[1734112453789,0.149116,101800.0,101790.0,0.3608]
[1734112454377,0.049118,101790.0,101780.0,0.45353257]
[1734112456386,0.1,101800.0,101780.0,0.50265557]
[1734112456693,0.149114,101800.0,101790.0,0.50265057]
[1734112457491,0.1,101800.0,101790.0,0.50265057]
[1734112458191,0.1,101800.0,101790.0,1.00265057]
[1734112458386,0.1,101800.0,101790.0,1.09538314]
[1734112458592,0.149113,101800.0,101790.0,0.95353257]
[1734112458891,0.149113,101800.0,101790.0,0.45353257]
[1734112459282,0.149113,101800.0,101790.0,0.50265057]
[1734112460111,0.149113,101800.0,101790.0,0.45353257]
[1734112460879,0.149113,101800.0,101790.0,1.00265057]
[1734112461088,0.149113,101800.0,101790.0,0.50265057]
[1734112461403,0.149113,101800.0,101790.0,0.45353257]
[1734112464582,0.23694123,101800.0,101790.0,0.45353257]
[1734112465598,0.23694123,101800.0,101790.0,0.59538314]
[1734112465786,0.149113,101800.0,101790.0,0.59538314]
[1734112466196,0.149113,101800.0,101790.0,0.45353257]
[1734112466684,0.149113,101800.0,101790.0,0.50265057]
[1734112467493,0.149113,101800.0,101790.0,0.45353257]
[1734112467793,0.23694123,101800.0,101790.0,0.45353257]
[1734112468191,0.23694123,101800.0,101790.0,0.3608]
[1734112468388,0.049118,101790.0,101780.0,0.46340716]
[1734112468588,0.148518,101790.0,101780.0,0.46340716]
[1734112469485,0.148518,101790.0,101780.0,0.3608]
[1734112469693,0.148518,101790.0,101780.0,0.45353257]
[1734112469896,0.148518,101790.0,101780.0,0.3608]
[1734112470985,0.23634623,101790.0,101780.0,0.3608]
[1734112472489,0.148518,101790.0,101780.0,0.3608]
[1734112473787,0.23634623,101790.0,101780.0,0.3608]
[1734112474184,0.148518,101790.0,101780.0,0.3608]
[1734112474384,0.23634623,101790.0,101780.0,0.3608]
[1734112474589,0.148518,101790.0,101780.0,0.45353257]
[1734112474791,0.23634623,101790.0,101780.0,0.45353257]
[1734112474995,0.148518,101790.0,101780.0,0.50265557]
[1734112475398,0.0994,101790.0,101780.0,1.00265557]
[1734112475591,0.23694423,101800.0,101780.0,0.95353257]
[1734112475794,0.23694423,101800.0,101790.0,0.50265057]
[1734112476299,0.35404279,101800.0,101790.0,1.70265057]
[1734112476593,0.35404279,101800.0,101790.0,0.409918]
[1734112477395,0.26621456,101800.0,101790.0,0.409918]
[1734112477694,0.26621456,101800.0,101790.0,0.3608]
[1734112478102,0.26621456,101800.0,101780.0,0.40992]
[1734112478400,0.25423135,101790.0,101780.0,0.50265257]
[1734112479401,0.16621656,101790.0,101780.0,0.67616519]
[1734112479895,0.16621656,101790.0,101780.0,0.68016519]
[1734112480597,0.31329239,101790.0,101780.0,0.68016519]
[1734112484002,0.31329239,101790.0,101780.0,1.88016519]
[1734112484192,0.31329239,101790.0,101780.0,0.68016519]
[1734112484398,0.26417439,101790.0,101780.0,0.58743262]
[1734112484610,0.20539326,101790.0,101780.0,0.79247333]
[1734112484798,0.0882947,101790.0,101780.0,1.85376804]
[1734112485402,0.0882947,101790.0,101780.0,1.76103547]
[1734112487502,0.1374127,101790.0,101780.0,1.48732014]
[1734112487706,0.0882947,101790.0,101780.0,1.48732014]
[1734112488705,0.1374127,101790.0,101780.0,1.48732014]
[1734112488901,0.1374127,101790.0,101780.0,0.98732014]
[1734112489303,0.1374127,101790.0,101780.0,1.08005271]
[1734112489304,0.0882947,101790.0,101780.0,1.08005271]
[1734112489505,0.0882947,101790.0,101780.0,1.3529092]
[1734112489702,0.0882947,101790.0,101780.0,1.8529092]
[1734112490009,0.0882947,101790.0,101780.0,1.76017663]
[1734112490308,0.0882947,101790.0,101780.0,1.8529092]
[1734112490511,0.0882947,101790.0,101780.0,1.62155904]
[1734112490809,0.30539326,101800.0,101780.0,1.95185904]
[1734112491005,0.30539326,101800.0,101790.0,0.90831373]
[1734112491200,0.30539326,101800.0,101790.0,0.96278433]
[1734112491424,0.1882947,101800.0,101790.0,2.66278433]
[1734112492301,0.1882947,101800.0,101790.0,3.43937049]
[1734112492302,0.05004075,101800.0,101790.0,3.43937049]
[1734112492607,0.11709856,101800.0,101790.0,0.6415534]
[1734112492801,0.11709856,101800.0,101790.0,0.86974105]
[1734112492802,0.08822939,101800.0,101790.0,0.86974105]
[1734112493002,0.08822939,101800.0,101790.0,1.36974105]
[1734112493208,0.08822939,101800.0,101790.0,2.57374105]
[1734112493602,0.13734239,101800.0,101790.0,2.56974105]
[1734112493800,0.13734239,101800.0,101790.0,2.57374105]
[1734112494015,0.08822939,101800.0,101790.0,2.66647362]
[1734112494805,0.13734239,101800.0,101790.0,2.66647362]
[1734112495012,0.13734239,101800.0,101790.0,1.37374105]
[1734112495997,0.18884239,101800.0,101790.0,1.37374105]
[1734112496207,0.18884239,101800.0,101790.0,0.87374105]
[1734112496409,0.18884239,101800.0,101790.0,0.8837232]
[1734112496910,0.13972939,101800.0,101790.0,0.8837232]
[1734112497305,0.18884239,101800.0,101790.0,0.8837232]
[1734112498316,0.18884239,101800.0,101790.0,0.6520868]
[1734112501219,0.18884239,101800.0,101790.0,0.8837232]
[1734112502214,0.13972939,101800.0,101790.0,0.97645577]
[1734112502515,0.13972939,101800.0,101790.0,1.47645577]
[1734112502819,0.30562795,101810.0,101790.0,2.67645577]
[1734112503011,0.35473595,101810.0,101800.0,0.409913]
[1734112503906,0.30562795,101810.0,101800.0,0.409913]
[1734112504206,0.26650656,101810.0,101800.0,0.409913]
[1734112504418,0.41358239,101810.0,101800.0,0.409913]
[1734112504814,0.41358239,101810.0,101800.0,0.413913]
[1734112506918,0.50631496,101810.0,101800.0,0.413913]
[1734112507515,0.41358239,101810.0,101800.0,0.413913]
[1734112509304,0.29648383,101810.0,101800.0,0.413913]
[1734112512620,0.24737583,101810.0,101800.0,0.58765546]
[1734112513011,0.14707583,101810.0,101800.0,0.58765546]
[1734112513211,0.20595008,101810.0,101800.0,1.41202443]
[1734112513413,0.1176865,101810.0,101800.0,1.46643825]
[1734112514019,0.1176865,101810.0,101800.0,1.29269579]
[1734112514221,0.1176865,101810.0,101800.0,1.46648828]
[1734112514420,0.1176865,101810.0,101800.0,1.29269579]
[1734112514618,0.1667945,101810.0,101800.0,0.87381523]
[1734112515119,0.26476233,101810.0,101800.0,0.87381523]
[1734112516323,0.31387033,101810.0,101800.0,0.87382051]
[1734112517624,0.19618383,101810.0,101800.0,0.58776501]
[1734112517922,0.37097534,101810.0,101800.0,0.6421983]
[1734112519310,0.37097534,101810.0,101800.0,0.5930853]
[1734112519517,0.14184057,101810.0,101800.0,0.004]
[1734112519712,0.14184057,101810.0,101780.0,0.81540741]
[1734112519713,0.049113,101800.0,101780.0,0.81540741]
[1734112519918,0.19636845,101790.0,101780.0,0.86991103]
[1734112520315,0.19636845,101790.0,101780.0,0.63827463]
[1734112520513,0.19636845,101790.0,101780.0,0.58377101]
[1734112520712,0.37306899,101790.0,101780.0,0.58377101]
[1734112520913,0.19636845,101790.0,101780.0,0.53465201]
[1734112521219,0.19636845,101790.0,101780.0,0.3608]
[1734112521621,0.37306899,101790.0,101770.0,0.18526393]
[1734112521925,0.19637345,101780.0,101770.0,0.06053992]
[1734112522314,0.19637345,101780.0,101770.0,0.049128]
[1734112522712,0.24707345,101780.0,101770.0,0.049128]
[1734112522919,0.29767345,101780.0,101770.0,0.057128]
[1734112523310,0.41524463,101780.0,101770.0,0.057128]
[1734112524425,0.26799418,101780.0,101770.0,0.059128]
[1734112524725,0.26799418,101780.0,101770.0,0.06925572]
[1734112525127,0.35613115,101780.0,101770.0,0.06925572]
[1734112525921,0.35613115,101780.0,101770.0,0.059128]
[1734112527422,0.35613115,101780.0,101770.0,0.15186057]
[1734112527423,0.25630815,101780.0,101770.0,0.15186057]
[1734112527627,0.25630815,101780.0,101770.0,0.51266057]
[1734112527628,0.08913697,101780.0,101770.0,0.51266057]
[1734112527824,0.001,101780.0,101770.0,1.06226057]
[1734112528033,0.001,101780.0,101770.0,0.51266057]
[1734112528327,0.001,101780.0,101770.0,1.06701428]
[1734112528531,0.001,101780.0,101770.0,2.26701428]
[1734112528719,0.001,101780.0,101770.0,2.44956782]
[1734112528920,0.001,101780.0,101770.0,2.45826782]
[1734112529329,0.001,101780.0,101770.0,2.68990422]
[1734112529534,0.001,101780.0,101770.0,2.45826782]
[1734112531135,0.001,101780.0,101770.0,2.44956782]
[1734112533239,0.001,101780.0,101770.0,1.09378001]
[1734112533622,0.001,101780.0,101770.0,2.29378001]
[1734112534233,0.001,101780.0,101770.0,0.47428794]
[1734112534434,0.050123,101780.0,101770.0,0.47428794]
[1734112535530,0.14285557,101780.0,101770.0,0.47428794]
[1734112535730,0.050123,101780.0,101770.0,0.47428794]
[1734112535935,0.050123,101780.0,101770.0,0.419928]
[1734112536443,0.13825997,101780.0,101770.0,0.419928]
[1734112536632,0.23099254,101780.0,101770.0,0.419928]
[1734112537031,0.34856372,101780.0,101770.0,0.419928]
[1734112537231,0.25583115,101780.0,101770.0,0.417928]
[1734112537430,0.13725997,101780.0,101770.0,0.409928]
[1734112537628,0.13725997,101780.0,101770.0,0.412928]
[1734112539129,0.13725997,101780.0,101770.0,0.409928]
[1734112539330,0.13725997,101780.0,101770.0,0.412928]
[1734112542137,0.13725997,101780.0,101770.0,0.052128]
[1734112542337,0.62022675,101780.0,101760.0,0.41987365]
[1734112542527,0.2810436,101770.0,101760.0,0.37074165]
[1734112542866,0.2810436,101770.0,101760.0,0.3608]
[1734112543141,0.39861478,101770.0,101760.0,0.3608]
[1734112544037,0.30588221,101770.0,101760.0,0.409933]
[1734112544430,0.30588221,101770.0,101760.0,0.412933]
[1734112545637,0.35278221,101770.0,101760.0,0.412933]
[1734112546338,0.26469918,101770.0,101760.0,0.412933]
[1734112546642,0.35743175,101770.0,101760.0,0.3638]
[1734112548037,0.36740566,101770.0,101760.0,0.3638]
[1734112548237,0.049133,101760.0,101750.0,0.37071889]
[1734112548442,0.81449066,101760.0,101750.0,0.00991889]
[1734112548644,0.049137,101750.0,101740.0,1.60994]
[1734112548943,0.25489058,101750.0,101740.0,1.60994]
[1734112549640,0.34762315,101750.0,101740.0,0.3608]
[1734112550044,0.34762793,101750.0,101740.0,0.3608]
[1734112550345,0.20573553,101750.0,101740.0,0.409942]
[1734112550538,0.20573553,101750.0,101740.0,0.50267457]
[1734112550733,0.08816089,101750.0,101740.0,1.36347457]
[1734112550942,0.18437254,101760.0,101750.0,0.049137]
[1734112551148,0.08816089,101760.0,101750.0,0.50266957]
[1734112551456,0.13506089,101770.0,101750.0,1.17652158]
[1734112551644,0.0469,101770.0,101760.0,0.409933]
[1734112551853,0.08813791,101770.0,101760.0,0.50266557]
[1734112552155,0.13726091,101780.0,101770.0,0.049128]
[1734112552339,0.34060602,101780.0,101770.0,0.3608]
[1734112552539,0.34060602,101780.0,101770.0,0.409928]
[1734112552744,0.34060602,101780.0,101770.0,0.3608]
[1734112552939,0.28148568,101780.0,101770.0,0.409928]
[1734112553351,0.28148568,101780.0,101770.0,0.3608]
[1734112553946,0.2814797,101780.0,101770.0,0.409928]
[1734112554339,0.19335557,101780.0,101770.0,0.409928]
[1734112554539,0.19335557,101780.0,101770.0,0.3638]
[1734112554742,0.34060602,101780.0,101770.0,0.3638]
[1734112555345,0.19335557,101780.0,101770.0,0.3638]
[1734112555655,0.34060602,101780.0,101770.0,0.3638]
[1734112557041,0.100623,101780.0,101770.0,0.412928]
[1734112559650,0.100623,101780.0,101770.0,0.42299021]
[1734112559953,0.13964386,101780.0,101770.0,0.42299021]
[1734112560343,0.13964386,101780.0,101770.0,0.41999021]
[1734112560344,0.18876686,101780.0,101770.0,0.41999021]
[1734112560543,0.18876686,101780.0,101770.0,0.42299021]
[1734112561348,0.0515,101780.0,101770.0,0.42299021]
[1734112561543,0.24687045,101790.0,101780.0,0.049123]
[1734112561751,0.19775045,101790.0,101780.0,0.409923]
[1734112562049,0.0505,101790.0,101780.0,0.409923]
[1734112562251,0.0505,101790.0,101780.0,0.58377501]
[1734112562452,0.099618,101790.0,101780.0,0.58377501]
[1734112562644,0.099618,101790.0,101780.0,0.409923]
[1734112564149,0.19235057,101790.0,101780.0,0.412923]
[1734112564545,0.28051207,101790.0,101780.0,0.412923]
[1734112564856,0.1877795,101790.0,101780.0,0.412923]
[1734112565556,0.1386615,101790.0,101780.0,0.412923]
[1734112565857,0.1877795,101790.0,101780.0,0.412923]
[1734112567649,0.28051207,101790.0,101780.0,0.412923]
[1734112568453,0.0881615,101790.0,101780.0,0.412923]
[1734112568659,0.1372795,101790.0,101780.0,0.412923]
[1734112570657,0.049118,101790.0,101780.0,0.412923]
[1734112571557,0.14185057,101790.0,101780.0,0.412923]
[1734112572357,0.22995847,101790.0,101780.0,0.3638]
[1734112572956,0.22995847,101790.0,101780.0,0.412923]
[1734112574354,0.14185057,101790.0,101780.0,0.412923]
[1734112574949,0.22995748,101790.0,101780.0,0.412923]
[1734112575558,0.22995748,101790.0,101780.0,0.3638]
[1734112575758,0.28910102,101790.0,101780.0,0.3638]
[1734112577359,0.38183359,101790.0,101780.0,0.003]
[1734112577561,1.21933413,101790.0,101780.0,0.003]
[1734112577766,0.049128,101770.0,101760.0,0.049132]
[1734112578058,0.13726315,101770.0,101760.0,0.049132]
[1734112578258,0.13726315,101770.0,101760.0,0.05894832]
[1734112579267,0.049128,101770.0,101760.0,0.05894832]
[1734112579766,0.049128,101770.0,101760.0,0.06194832]
[1734112580960,0.19601992,101770.0,101760.0,0.06194832]
[1734112581264,0.64955249,101770.0,101760.0,0.01281632]
[1734112581567,0.87833136,101770.0,101760.0,0.003]
[1734112581868,0.73126111,101770.0,101760.0,0.003]
[1734112582258,0.63852854,101770.0,101760.0,0.052132]
[1734112582454,0.78559663,101770.0,101760.0,0.052132]
[1734112582763,0.70162866,101770.0,101760.0,0.052132]
[1734112583868,0.60889609,101770.0,101760.0,0.052132]
[1734112584162,0.55699609,101770.0,101760.0,1.252132]
[1734112584572,0.049128,101770.0,101760.0,1.252132]
[1734112584764,0.13731953,101770.0,101760.0,1.305832]
[1734112584966,0.13732144,101770.0,101760.0,1.305832]
[1734112585159,0.049128,101770.0,101760.0,1.305832]
[1734112585862,0.049128,101770.0,101760.0,1.3158022]
[1734112586267,0.049128,101770.0,101760.0,0.1128022]
[1734112586466,0.049128,101770.0,101760.0,0.1158022]
[1734112587067,0.049128,101770.0,101760.0,0.0621022]
[1734112588266,0.409928,101770.0,101760.0,0.0621022]
[1734112588566,0.64972866,101770.0,101760.0,0.0621022]
[1734112589564,0.28892866,101770.0,101760.0,0.4229022]
[1734112589767,0.35239209,101780.0,101770.0,0.049128]
[1734112589967,0.205324,101780.0,101770.0,0.409928]
[1734112590169,0.18955387,101780.0,101770.0,0.46443888]
[1734112590369,0.08815387,101780.0,101770.0,0.96443888]
[1734112590572,0.13727687,101780.0,101770.0,0.96443888]
[1734112590768,0.13727687,101780.0,101770.0,0.46443888]
[1734112590972,0.13727687,101780.0,101770.0,0.46743888]
[1734112591672,0.13727747,101780.0,101770.0,0.58678001]
[1734112592272,0.13727747,101780.0,101770.0,0.58378001]
[1734112592461,0.13727747,101780.0,101770.0,0.58678001]
[1734112592867,0.13727747,101780.0,101770.0,0.64078001]
[1734112594071,0.13727747,101780.0,101770.0,0.69528867]
[1734112594973,0.13727747,101780.0,101770.0,0.64128867]
[1734112595280,0.23001004,101780.0,101770.0,0.052128]
[1734112595576,0.19695557,101780.0,101770.0,0.052128]
[1734112595991,0.104223,101780.0,101770.0,0.052128]
[1734112596879,0.61209109,101780.0,101770.0,0.052128]
[1734112597570,0.25129109,101780.0,101770.0,0.052128]
[1734112597769,0.465023,101780.0,101770.0,0.052128]
[1734112597965,0.61209109,101780.0,101770.0,0.052128]
[1734112598679,0.70482366,101780.0,101770.0,0.003]
[1734112598880,0.8815242,101780.0,101770.0,0.003]
[1734112599078,0.78879163,101780.0,101770.0,0.003]
[1734112599375,0.61209109,101780.0,101770.0,0.003]
[1734112599683,0.61209109,101780.0,101770.0,0.052128]
[1734112601382,0.61209109,101780.0,101770.0,0.44486057]
[1734112601383,0.50786809,101780.0,101770.0,0.44486057]
[1734112601676,0.17817445,101810.0,101800.0,0.049113]
[1734112601876,0.00147391,101810.0,101800.0,1.249113]
[1734112602081,0.00147391,101810.0,101800.0,0.049113]
[1734112602674,0.00147391,101810.0,101800.0,1.609913]
[1734112603080,0.14331448,101810.0,101800.0,1.249113]
[1734112603274,0.50411448,101810.0,101800.0,1.252113]
[1734112603480,0.41138191,101810.0,101800.0,1.252113]
[1734112603682,0.41138191,101810.0,101800.0,0.052113]
[1734112603683,0.00147391,101810.0,101800.0,0.052113]
[1734112604184,0.05058191,101810.0,101800.0,0.052113]
[1734112605173,0.50411448,101810.0,101800.0,0.052113]
[1734112605581,0.50411448,101810.0,101800.0,0.049113]
[1734112605791,0.50411448,101810.0,101800.0,0.051113]
[1734112606282,0.41138191,101810.0,101800.0,0.051113]
[1734112606786,0.41138191,101810.0,101800.0,0.002]
[1734112606787,0.50411448,101810.0,101800.0,0.002]
[1734112607175,0.049113,101800.0,101790.0,0.05895002]
[1734112607375,0.409913,101800.0,101790.0,0.05895002]
[1734112607581,0.50264557,101800.0,101790.0,0.05895002]
[1734112608380,0.50264557,101800.0,101790.0,0.00983302]
[1734112608581,0.049118,101790.0,101780.0,0.049121]
[1734112608784,0.156018,101790.0,101780.0,0.049121]
[1734112609677,0.24875057,101790.0,101780.0,0.051121]
[1734112609881,0.00147391,101810.0,101800.0,0.049113]
[1734112610286,0.05777391,101810.0,101800.0,0.549113]
[1734112610788,0.05777391,101810.0,101800.0,0.049113]
[1734112611498,0.41857391,101810.0,101800.0,1.249113]
[1734112611700,0.58504273,101810.0,101800.0,1.251113]
[1734112611901,0.58504273,101810.0,101800.0,0.051113]
[1734112612902,0.58504273,101810.0,101800.0,0.06108432]
[1734112616295,0.58508156,101810.0,101800.0,0.06108432]
[1734112617397,0.46768291,101810.0,101800.0,0.06108432]
[1734112617598,0.58510603,101810.0,101800.0,0.06108432]
[1734112618505,0.46768291,101810.0,101800.0,0.05908432]
[1734112618709,0.46768291,101810.0,101800.0,0.06108432]
[1734112621096,0.46768291,101810.0,101800.0,0.002]
[1734112621097,0.56041548,101810.0,101800.0,0.002]
[1734112621303,0.46768291,101810.0,101800.0,0.002]
[1734112621702,0.64438345,101810.0,101800.0,0.002]
[1734112622108,0.64438345,101810.0,101790.0,0.05889717]
[1734112622312,0.409913,101800.0,101790.0,0.05889717]
[1734112624405,0.5274085,101800.0,101790.0,0.05889717]
[1734112625303,0.5274085,101800.0,101790.0,0.06089717]
[1734112627000,0.4782955,101800.0,101790.0,0.06089717]
[1734112627307,0.1174955,101800.0,101790.0,0.65362974]
[1734112627812,0.1174955,101800.0,101790.0,0.15362974]
[1734112628012,0.1666085,101800.0,101790.0,0.15362974]
[1734112628215,0.1666085,101800.0,101790.0,1.01442974]
[1734112628415,0.1666085,101800.0,101790.0,0.82567647]
[1734112628712,0.1666085,101800.0,101790.0,0.38222577]
[1734112628913,0.1666085,101800.0,101790.0,0.82767647]
[1734112629108,0.1666085,101800.0,101790.0,0.15362974]
[1734112629411,0.2212085,101800.0,101790.0,0.15362974]
[1734112630114,0.1720955,101800.0,101790.0,0.15362974]
[1734112630517,0.1720955,101800.0,101790.0,0.32767647]
[1734112631120,0.1720955,101800.0,101790.0,0.2349439]
[1734112631411,0.2212085,101800.0,101790.0,0.2349439]
[1734112631707,0.25083124,101800.0,101790.0,0.2349439]
[1734112631912,0.61163124,101800.0,101790.0,0.06089717]
[1734112632112,0.61163124,101800.0,101790.0,0.17604673]